bitfinex/quotes_ETHUSD_20260209
["timestamp","ask_amount","ask_price","bid_price","bid_amount"]
[1770648123177,1.22567044,2039.7,2038.7,0.001]
[1770648123983,4.64964826,2039.8,2038.7,0.001]
[1770648124162,0.0735222,2039.7,2038.7,0.001]
[1770648124480,0.0735222,2039.4,2038.4,0.001]
[1770648124677,0.0735222,2039.7,2038.4,0.001]
[1770648124881,0.0735222,2039.4,2038.4,0.001]
[1770648125083,0.0735222,2039.1,2038.4,0.001]
[1770648125258,1.22609122,2039.0,2038.4,0.001]
[1770648125466,0.0735222,2039.1,2038.4,0.001]
[1770648125785,1.22591085,2039.3,2038.4,0.001]
[1770648125950,0.0735222,2039.1,2038.4,0.001]
[1770648126149,1.22591085,2039.3,2038.4,0.001]
[1770648126657,0.0735222,2039.2,2038.4,0.001]
[1770648126878,1.22591085,2039.3,2038.4,0.001]
[1770648127178,4.90345353,2039.4,2038.4,0.001]
[1770648127380,0.0735222,2039.2,2038.9,0.001]
[1770648127683,4.90345353,2039.4,2038.9,0.001]
[1770648128087,4.97623022,2039.7,2038.9,0.001]
[1770648128289,1.22567044,2039.7,2038.9,0.001]
[1770648128662,0.0735222,2039.5,2038.9,0.001]
[1770648128862,1.22567044,2039.7,2038.9,0.001]
[1770648129160,1.22543012,2040.1,2038.9,0.001]
[1770648129373,4.90150615,2040.2,2038.9,0.001]
[1770648129374,1.22537006,2040.2,2038.9,0.001]
[1770648129775,4.90348024,2040.4,2038.9,0.001]
[1770648129776,0.002,2040.4,2038.9,3.22463315]
[1770648130093,1.22725686,2040.4,2038.9,3.22463315]
[1770648130291,1.22726418,2040.4,2038.9,0.001]
[1770648130673,0.002,2040.4,2039.3,3.22363315]
[1770648130871,0.002,2040.4,2038.9,0.001]
[1770648130872,1.22727766,2040.4,2038.9,0.001]
[1770648131084,0.002,2040.4,2038.9,3.22463315]
[1770648131269,0.002,2040.4,2039.2,4.44960411]
[1770648131472,0.002,2040.4,2039.3,3.22363315]
[1770648131673,0.002,2040.4,2039.5,3.22363315]
[1770648132986,0.002,2041.5,2040.0,3.22363315]
[1770648133181,0.002,2041.5,2039.8,1.22561035]
[1770648133182,1.22470974,2041.3,2039.8,1.22561035]
[1770648133520,1.22468158,2041.4,2039.9,3.22363315]
[1770648133714,0.002,2041.5,2040.2,3.29715535]
[1770648133914,0.002,2041.5,2040.3,3.22363315]
[1770648134306,0.002,2041.5,2040.5,3.22363315]
[1770648134618,0.0735222,2041.3,2039.8,1.22561035]
[1770648134804,1.22660948,2041.5,2039.8,1.22561035]
[1770648135005,1.04549063,2041.4,2040.0,3.22363315]
[1770648135210,1.30013168,2041.5,2040.0,3.22363315]
[1770648135408,1.04542311,2041.4,2040.1,1.22543012]
[1770648135595,1.30013168,2041.5,2040.1,1.22543012]
[1770648135596,1.22660948,2041.5,2040.1,1.22543012]
[1770648135807,1.04568258,2041.4,2040.1,1.22543012]
[1770648136121,0.002,2041.5,2040.2,3.18419765]
[1770648136295,0.002,2041.5,2040.5,3.18419765]
[1770648136496,0.002,2041.5,2040.1,11.8787505]
[1770648136497,0.002,2041.5,2040.6,6.60919765]
[1770648136808,0.002,2041.5,2040.6,3.425]
[1770648137320,0.002,2041.5,2040.7,1.22506982]
[1770648137687,0.002,2041.5,2040.7,4.40926747]
[1770648137894,4.96876402,2042.9,2041.1,3.25771985]
[1770648138091,4.96876402,2042.9,2040.7,11.804868]
[1770648138092,0.0735222,2042.6,2040.7,1.22506982]
[1770648138290,1.04542078,2042.5,2040.7,1.22506982]
[1770648138514,0.0735222,2042.6,2040.7,4.63569505]
[1770648138803,4.96876402,2042.9,2040.8,3.48414743]
[1770648138804,1.04492159,2042.5,2040.8,3.48414743]
[1770648139014,8.09783387,2042.9,2040.8,3.48414743]
[1770648139317,1.22387036,2042.7,2041.2,1.22476974]
[1770648139694,1.22363075,2043.1,2041.4,3.48414743]
[1770648139903,0.0735222,2042.8,2041.2,1.22476974]
[1770648140218,0.002,2042.7,2041.2,4.64876974]
[1770648140524,0.0735222,2042.5,2041.2,4.64876974]
[1770648141222,0.002,2042.7,2041.2,8.05939497]
[1770648141523,0.002,2042.7,2041.3,3.41062523]
[1770648142517,0.0735222,2042.6,2041.3,3.36162062]
[1770648142714,0.002,2042.7,2041.3,3.36162062]
[1770648142915,0.0735222,2042.2,2041.2,1.22476974]
[1770648143122,3.13106985,2042.7,2041.2,1.22476974]
[1770648143328,0.0735222,2042.6,2041.2,1.22476974]
[1770648144028,0.002,2042.7,2041.2,1.22476974]
[1770648144200,0.0735222,2042.3,2041.2,1.22476974]
[1770648144401,0.002,2042.7,2041.1,1.22478946]
[1770648144600,0.0735222,2042.6,2041.1,1.22478946]
[1770648145197,0.0735222,2042.3,2041.1,1.22478946]
[1770648145399,0.002,2042.7,2041.2,3.41062523]
[1770648145820,0.002,2042.7,2041.6,14.00167923]
[1770648146033,0.002,2042.9,2042.0,3.41062523]
[1770648147023,0.002,2043.2,2042.0,3.41062523]
[1770648147228,0.002,2043.2,2041.9,1.22434987]
[1770648147723,0.0735222,2043.1,2041.9,1.22434987]
[1770648147930,1.22557086,2043.2,2041.6,1.22452978]
[1770648148102,1.29909306,2043.2,2041.6,1.22452978]
[1770648148305,1.22557086,2043.2,2041.6,1.22452978]
[1770648149117,1.22557086,2043.2,2041.6,1.29805198]
[1770648149305,4.42816291,2043.2,2041.6,1.22452978]
[1770648150257,0.0735222,2042.6,2041.5,1.2245855]
[1770648150422,0.0735222,2042.3,2040.6,6.83262523]
[1770648150745,0.0735222,2042.2,2041.1,1.22479812]
[1770648151042,0.0735222,2042.2,2041.0,4.89946144]
[1770648151043,0.0735222,2041.9,2040.6,3.422]
[1770648151252,0.0735222,2042.6,2041.3,1.22468655]
[1770648151456,0.0735222,2042.6,2041.5,1.22457686]
[1770648151613,0.0735222,2042.6,2041.5,1.22457983]
[1770648151940,3.20259205,2042.7,2041.5,1.22456898]
[1770648152145,1.22393028,2042.6,2041.0,4.89908765]
[1770648152512,1.22393028,2042.6,2041.5,0.001]
[1770648152825,0.002,2042.5,2041.5,0.001]
[1770648155343,0.0735222,2042.4,2041.5,0.001]
[1770648155535,0.002,2042.5,2041.5,0.001]
[1770648155933,0.0735222,2042.4,2041.5,0.001]
[1770648156141,0.0735222,2042.1,2041.3,0.001]
[1770648156332,1.22428991,2042.0,2041.3,0.001]
[1770648156935,3.12906985,2041.9,2041.3,0.001]
[1770648157346,1.22428991,2042.0,2041.3,0.001]
[1770648157647,0.0735222,2041.8,2041.3,0.001]
[1770648157847,0.0735222,2041.7,2041.3,0.001]
[1770648158220,1.22452978,2041.6,2041.3,0.001]
[1770648158746,1.22452978,2041.6,2040.3,1.22531]
[1770648158947,1.11923836,2041.5,2040.3,1.22531]
[1770648159148,0.0735222,2041.2,2040.2,1.22532698]
[1770648159348,1.22452978,2041.6,2040.2,1.22532698]
[1770648159652,1.04717258,2041.5,2040.2,1.22532698]
[1770648159865,1.04717258,2041.4,2040.2,1.22532698]
[1770648160023,0.0735222,2041.2,2040.1,1.22538237]
[1770648160222,0.0735222,2041.2,2039.8,3.422]
[1770648160223,1.22488975,2041.0,2039.4,4.90298532]
[1770648160450,1.22487366,2041.1,2039.5,3.48414743]
[1770648160652,1.0481651,2041.0,2039.2,1.22597096]
[1770648160828,1.0481651,2040.9,2039.2,1.22597096]
[1770648161036,1.1216873,2040.8,2039.2,4.63659619]
[1770648161360,1.0481651,2040.7,2039.2,1.22597096]
[1770648161925,1.0481651,2040.6,2039.2,1.22597096]
[1770648162125,3.12906985,2041.0,2039.2,1.22597096]
[1770648162329,1.2250098,2040.8,2039.2,4.63659619]
[1770648162529,1.0482968,2040.7,2039.2,4.63659619]
[1770648162726,1.2250098,2040.8,2039.2,4.63659619]
[1770648162952,1.04826782,2040.7,2039.2,4.63659619]
[1770648163255,1.22482974,2041.1,2039.5,3.41062523]
[1770648163455,1.04780201,2041.0,2039.5,3.41062523]
[1770648163657,1.04780201,2040.9,2039.2,1.22597096]
[1770648163967,1.04780201,2040.8,2039.3,3.48414743]
[1770648164133,0.0735222,2040.7,2039.3,3.41062523]
[1770648164338,0.0735222,2040.7,2039.2,1.22597096]
[1770648164339,1.22531,2040.3,2039.2,1.22597096]
[1770648164551,1.22522105,2040.5,2039.2,1.22597096]
[1770648164842,1.22510829,2040.7,2039.2,1.22597096]
[1770648165429,0.0735222,2041.1,2039.3,3.23517857]
[1770648165630,1.22470974,2041.3,2039.6,16.49300357]
[1770648165854,1.04665972,2041.2,2039.6,3.23517857]
[1770648166039,1.22470974,2041.3,2039.6,3.23517857]
[1770648166461,1.22470974,2041.3,2039.7,1.22567044]
[1770648166659,0.0735222,2041.1,2039.7,1.22567044]
[1770648167062,1.0465157,2041.0,2039.7,1.22567044]
[1770648167259,0.0735222,2041.1,2039.7,1.22567044]
[1770648167465,3.40570775,2041.2,2039.7,1.22567044]
[1770648167676,0.0735222,2041.1,2039.7,1.22567044]
[1770648168668,1.22470974,2041.3,2039.6,4.90268176]
[1770648168872,1.04593007,2041.2,2039.7,3.23517857]
[1770648169035,1.22470974,2041.3,2039.7,3.23517857]
[1770648169435,4.64963063,2041.5,2039.9,3.23517857]
[1770648169655,4.64963063,2041.5,2039.6,4.97620396]
[1770648169656,4.64959248,2041.5,2040.0,6.65817857]
[1770648169869,3.425,2041.5,2040.0,6.65817857]
[1770648170172,0.002,2041.5,2040.5,3.23517857]
[1770648170378,0.002,2041.5,2040.6,3.23517857]
[1770648170668,0.002,2041.5,2040.8,3.23517857]
[1770648170893,0.002,2041.5,2040.7,1.22506982]
[1770648172240,0.0735222,2041.4,2040.7,1.22506982]
[1770648172444,0.002,2041.5,2040.6,1.22508392]
[1770648172782,0.0735222,2041.1,2040.1,1.22543012]
[1770648173086,0.0735222,2041.1,2040.0,8.32489349]
[1770648173087,0.0735222,2041.2,2040.0,1.22544189]
[1770648173564,1.04622679,2041.1,2040.0,1.22544189]
[1770648173770,1.29823194,2041.3,2040.0,1.22544189]
[1770648173955,0.0735222,2041.0,2040.0,1.22544189]
[1770648174382,0.0735222,2040.7,2040.0,1.22548293]
[1770648174568,1.29863279,2040.7,2039.4,4.90440213]
[1770648174883,0.0735222,2040.6,2039.4,4.90440213]
[1770648175068,0.0735222,2040.7,2039.4,4.90440213]
[1770648175378,8.30504765,2041.1,2039.4,4.90440213]
[1770648175379,3.40570775,2041.6,2039.5,3.23517857]
[1770648175558,1.04623064,2041.2,2039.6,9.38150957]
[1770648175759,1.22464975,2041.4,2039.6,3.23517857]
[1770648175966,1.29817195,2041.4,2039.6,3.23517857]
[1770648176655,1.29817195,2041.4,2039.7,4.46084901]
[1770648176656,1.04697157,2041.3,2039.7,4.46084901]
[1770648176853,1.29817195,2041.4,2039.7,4.46084901]
[1770648177082,1.04705931,2041.3,2039.7,4.46084901]
[1770648177281,1.29817262,2041.4,2039.7,4.46084901]
[1770648177481,1.0479987,2041.3,2039.7,4.46084901]
[1770648177678,1.29817262,2041.4,2039.7,4.46084901]
[1770648177882,0.0735222,2041.1,2039.7,4.46084901]
[1770648178088,0.0735222,2041.1,2039.8,3.424]
[1770648178580,0.0735222,2041.0,2039.9,1.22555027]
[1770648178986,1.29817262,2041.4,2039.9,1.22555027]
[1770648179201,1.04895173,2041.3,2040.0,3.23517857]
[1770648179356,1.22659552,2041.5,2040.0,3.23517857]
[1770648179557,1.04987669,2041.4,2040.0,3.23517857]
[1770648179861,0.002,2041.5,2040.2,3.23517857]
[1770648180292,0.002,2041.5,2039.9,1.22555027]
[1770648180293,0.002,2041.2,2039.9,1.22555027]
[1770648180492,0.002,2041.2,2040.1,7.552932]
[1770648180796,0.002,2041.5,2040.6,3.23517857]
[1770648181003,0.002,2041.5,2040.7,3.83]
[1770648181207,0.002,2041.7,2040.9,3.23517857]
[1770648181417,0.002,2041.7,2041.1,10.956834]
[1770648181569,0.002,2042.3,2041.1,10.736644]
[1770648181899,0.002,2042.3,2041.1,2.501]
[1770648182279,1.22616784,2042.3,2040.8,3.424]
[1770648182600,0.002,2042.3,2041.3,1.22470974]
[1770648184669,0.002,2042.3,2041.1,4.89883897]
[1770648184670,0.0735222,2042.2,2041.1,4.89883897]
[1770648184874,0.002,2042.3,2041.1,4.89883897]
[1770648185207,0.002,2042.3,2041.0,3.423]
[1770648185208,0.0735222,2041.9,2041.0,3.423]
[1770648185385,0.0735222,2041.6,2040.9,1.22491807]
[1770648185582,0.0735222,2042.2,2040.9,1.22491807]
[1770648185583,8.37519078,2042.6,2041.0,1.22488915]
[1770648185899,1.04959921,2042.2,2041.0,1.22488915]
[1770648186099,1.04959921,2042.1,2041.0,1.22488915]
[1770648186323,0.0735222,2041.9,2041.0,1.22488915]
[1770648186528,3.40570775,2042.2,2041.0,1.22488915]
[1770648186728,0.002,2042.5,2040.9,8.1349637]
[1770648187034,0.002,2042.5,2041.0,3.23517857]
[1770648187318,0.002,2042.5,2041.4,5.115077]
[1770648187478,0.002,2042.5,2041.5,3.423]
[1770648188000,0.002,2042.5,2041.6,3.976228]
[1770648188170,0.002,2042.5,2041.3,3.23517857]
[1770648188369,0.002,2042.5,2041.4,3.423]
[1770648188699,0.002,2042.5,2041.5,1.22458976]
[1770648189499,0.0755222,2042.5,2041.5,1.22458976]
[1770648189690,0.002,2042.5,2041.5,1.22458976]
[1770648190997,0.002,2042.5,2041.6,11.36991]
[1770648191199,0.002,2042.5,2041.6,5.653182]
[1770648191582,0.002,2042.5,2041.6,5.98383]
[1770648191912,0.002,2042.5,2041.5,1.22458976]
[1770648192131,0.002,2042.5,2041.6,30.0]
[1770648192293,0.002,2042.5,2041.6,2.31518]
[1770648192611,0.002,2042.5,2041.8,0.001]
[1770648192779,0.002,2042.5,2041.8,1.22540983]
[1770648193813,0.002,2042.5,2040.9,4.89978268]
[1770648193814,0.0735222,2042.1,2040.9,4.89978268]
[1770648194112,0.0735222,2042.1,2040.7,4.90126672]
[1770648194113,3.47922995,2042.1,2040.7,4.90126672]
[1770648194323,0.0735222,2042.4,2040.8,4.89983159]
[1770648194483,0.002,2042.5,2041.6,1.22448797]
[1770648194805,0.0735222,2042.0,2041.1,4.89928965]
[1770648195023,1.22417001,2042.2,2041.2,1.22473857]
[1770648195363,3.25584912,2042.2,2041.1,1.22478815]
[1770648195480,0.0735222,2041.9,2041.1,1.22480399]
[1770648195680,0.0735222,2041.6,2040.9,1.22491734]
[1770648196013,0.0735222,2041.8,2040.9,4.89960804]
[1770648196310,3.18232692,2042.2,2041.2,1.22476815]
[1770648196605,3.18232692,2041.9,2041.2,1.22475198]
[1770648196808,1.22440983,2041.8,2040.7,1.2260098]
[1770648197006,4.97018427,2042.3,2040.8,4.89997916]
[1770648197205,2.27185411,2042.2,2040.8,4.89997916]
[1770648197410,3.25584912,2042.0,2040.8,4.89997916]
[1770648197600,1.04814633,2041.9,2040.8,4.89997916]
[1770648197803,3.25584912,2042.0,2040.8,4.89997916]
[1770648198188,0.0735222,2041.7,2040.8,1.2250098]
[1770648198728,3.25584912,2042.0,2040.7,1.22602704]
[1770648198885,3.19135923,2041.7,2040.7,0.001]
[1770648199211,1.22434987,2041.9,2040.7,0.001]
[1770648199736,1.04889881,2041.8,2040.7,0.001]
[1770648199890,1.29785132,2042.0,2040.7,0.001]
[1770648200239,1.0488916,2041.9,2040.7,0.001]
[1770648200430,1.29785132,2042.0,2040.7,0.001]
[1770648200712,1.04889601,2041.9,2040.7,0.001]
[1770648200924,1.29785089,2042.0,2040.7,0.001]
[1770648201210,1.22405013,2042.4,2040.8,4.435]
[1770648201415,0.0735222,2041.9,2040.7,0.001]
[1770648202288,1.04903036,2041.8,2040.7,0.001]
[1770648202487,0.0735222,2041.6,2040.7,0.001]
[1770648202687,1.04903036,2041.5,2040.7,0.001]
[1770648202956,1.22464975,2041.4,2040.7,0.001]
[1770648203634,0.0735222,2041.2,2040.7,0.001]
[1770648203837,1.04976863,2041.1,2039.8,0.001]
[1770648204141,0.0735222,2040.9,2039.8,0.001]
[1770648204323,1.04976863,2040.8,2040.1,1.2253963]
[1770648204639,3.19135923,2041.2,2039.8,4.9032576]
[1770648204850,0.0735222,2040.8,2039.8,0.001]
[1770648205140,3.11783703,2041.2,2039.8,0.001]
[1770648205344,0.5,2041.0,2039.8,0.001]
[1770648205715,0.0735222,2041.1,2039.8,0.001]
[1770648205916,1.04955118,2041.0,2039.8,0.001]
[1770648206115,1.22478877,2041.2,2039.8,0.001]
[1770648206316,1.04939347,2041.1,2039.8,0.001]
[1770648206531,1.22478877,2041.2,2040.7,0.001]
[1770648207142,1.12288663,2041.1,2040.7,0.001]
[1770648207441,0.0735222,2040.8,2040.7,0.001]
[1770648207604,1.04929009,2040.9,2040.7,0.001]
[1770648207948,1.29831097,2041.2,2040.7,0.001]
[1770648208149,1.04931574,2041.1,2039.8,0.001]
[1770648208443,4.416148,2041.2,2039.8,0.001]
[1770648208444,1.22478877,2041.2,2039.8,0.001]
[1770648208644,1.04900244,2041.1,2039.8,0.001]
[1770648208848,1.04905166,2041.0,2039.8,0.001]
[1770648209052,1.22482974,2041.1,2039.8,0.001]
[1770648209250,3.19135923,2040.7,2039.8,0.001]
[1770648209550,0.0735222,2040.3,2039.8,0.001]
[1770648209848,1.04927798,2040.2,2039.4,0.001]
[1770648210019,0.0735222,2040.3,2039.4,0.001]
[1770648210344,3.19135923,2040.6,2039.4,0.001]
[1770648210545,1.04818117,2040.5,2039.4,0.001]
[1770648210851,0.0735222,2040.3,2039.4,0.001]
[1770648211052,0.0735222,2040.0,2039.2,0.001]
[1770648211751,4.34320709,2040.2,2039.2,0.001]
[1770648211933,1.04715202,2040.1,2039.2,0.001]
[1770648212132,0.0735222,2040.0,2039.2,0.001]
[1770648212521,4.34320709,2040.2,2039.2,0.001]
[1770648212917,1.22537006,2040.2,2039.2,0.001]
[1770648213142,1.29889226,2040.2,2039.2,0.001]
[1770648213924,0.0735222,2039.9,2039.2,0.001]
[1770648214121,0.0735222,2039.6,2039.2,0.001]
[1770648214555,0.0735222,2039.9,2039.2,0.001]
[1770648214773,3.11783703,2039.6,2038.7,0.001]
[1770648215067,0.0735222,2039.3,2038.7,0.001]
[1770648215220,1.22571322,2039.7,2038.7,0.001]
[1770648215421,0.0735222,2039.6,2038.7,0.001]
[1770648215629,1.22558513,2039.9,2038.7,0.001]
[1770648216227,0.0735222,2039.8,2038.7,0.001]
[1770648216858,0.0735222,2039.5,2038.7,0.001]
[1770648217042,0.0735222,2039.2,2038.7,0.001]
[1770648217349,1.22585074,2039.4,2038.7,0.001]
[1770648217562,0.0735222,2039.2,2038.7,0.001]
[1770648218682,0.0735222,2039.1,2038.7,0.001]
[1770648219277,1.22609122,2039.0,2038.4,0.001]
[1770648219475,1.29953144,2039.2,2038.4,0.001]
[1770648220278,4.41736847,2039.2,2038.4,0.001]
[1770648220572,1.29953144,2039.2,2038.4,0.001]
[1770648221072,0.0735222,2038.9,2038.4,0.001]
[1770648221373,3.11783703,2039.1,2038.4,0.001]
[1770648221581,0.0735222,2038.9,2038.4,0.001]
[1770648222167,0.0735222,2038.6,2038.4,0.001]
[1770648222471,0.0735222,2038.9,2038.4,0.001]
[1770648223188,1.22633179,2038.6,2038.4,0.001]
[1770648223478,1.22633179,2038.6,2037.8,0.001]
[1770648223639,1.29985399,2038.6,2037.8,0.001]
[1770648223976,0.0735222,2038.3,2037.8,0.001]
[1770648224152,3.426,2038.5,2037.8,0.001]
[1770648224348,1.22626264,2038.8,2037.8,0.001]
[1770648224547,0.0735222,2039.2,2037.8,3.10714531]
[1770648224953,1.29935958,2039.5,2037.8,3.10714531]
[1770648225150,0.0735222,2039.2,2037.9,1.22675303]
[1770648225639,1.29935958,2039.5,2037.9,1.22675303]
[1770648225852,0.0735222,2038.9,2037.9,1.22675303]
[1770648226372,0.0735222,2039.4,2038.0,3.27556915]
[1770648226576,0.0735222,2038.8,2037.9,1.22675303]
[1770648226969,0.0735222,2038.8,2037.8,0.001]
[1770648227183,1.22645211,2038.4,2037.8,0.001]
[1770648227364,0.0735222,2038.2,2037.3,1.22707155]
[1770648227563,0.0735222,2038.2,2037.2,5.04325736]
[1770648227564,0.0735222,2037.6,2037.2,0.1346892]
[1770648227743,0.0735222,2037.9,2037.2,0.1346892]
[1770648227944,0.0735222,2037.5,2037.2,0.1346892]
[1770648228144,0.0735222,2037.5,2036.9,1.22734927]
[1770648228377,0.0735222,2037.5,2036.8,1.22738736]
[1770648228582,0.0735222,2037.8,2036.2,4.91106088]
[1770648228797,0.3070925,2038.2,2036.7,1.22747517]
[1770648228798,0.0735222,2038.2,2036.7,1.22747517]
[1770648228957,0.0735222,2037.8,2036.7,1.22747517]
[1770648229185,0.0735222,2037.8,2036.5,4.90990327]
[1770648229186,1.22687343,2037.7,2036.5,4.90990327]
[1770648229476,1.22687343,2037.7,2036.4,4.90990327]
[1770648229643,0.0735222,2037.9,2036.5,3.27556915]
[1770648229837,1.22663264,2038.1,2036.5,3.27556915]
[1770648230043,1.22663264,2038.1,2036.4,8.18547242]
[1770648230044,0.0735222,2037.9,2036.4,8.18547242]
[1770648230347,0.0735222,2037.6,2036.4,8.18547242]
[1770648230844,0.0735222,2037.6,2036.7,0.001]
[1770648231189,1.22699386,2037.5,2036.7,0.001]
[1770648231486,1.22681322,2037.8,2036.7,0.001]
[1770648231653,0.0735222,2037.6,2036.7,0.001]
[1770648232060,1.22681322,2037.8,2036.7,0.001]
[1770648232255,0.0735222,2037.6,2036.7,0.001]
[1770648233002,0.0735222,2037.3,2036.7,0.001]
[1770648233155,1.22717455,2037.2,2036.7,0.001]
[1770648234161,0.0735222,2037.0,2036.7,0.001]
[1770648234385,0.0735222,2037.1,2036.5,0.001]
[1770648234571,0.0735222,2036.8,2036.5,0.001]
[1770648234866,0.0735222,2037.1,2036.5,0.001]
[1770648235183,1.22747581,2036.7,2036.5,0.001]
[1770648235387,3.17911065,2037.8,2036.5,0.001]
[1770648235559,0.0735222,2037.3,2036.5,0.001]
[1770648236389,0.0735222,2036.7,2036.5,0.001]
[1770648236774,0.0735222,2037.0,2036.5,0.001]
[1770648237088,0.0735222,2036.7,2036.5,0.001]
[1770648237300,1.30105828,2036.6,2036.5,0.001]
[1770648237594,1.30105828,2036.6,2035.6,8.34154875]
[1770648237961,1.30105828,2036.6,2035.6,4.91354875]
[1770648238873,0.0735222,2036.3,2035.6,1.22913912]
[1770648239194,0.0735222,2036.3,2035.6,1.22911653]
[1770648239387,1.30128459,2036.3,2035.6,0.001]
[1770648239760,0.0735222,2036.7,2035.6,0.001]
[1770648239960,4.90966221,2036.9,2035.6,0.001]
[1770648240160,0.0735222,2036.7,2035.6,0.001]
[1770648240566,4.90966221,2036.9,2035.6,0.001]
[1770648240567,0.0735222,2036.6,2035.6,0.001]
[1770648240760,6.60711065,2037.2,2035.6,0.001]
[1770648240985,1.47185191,2038.3,2036.1,0.0735222]
[1770648240986,4.90657322,2038.1,2036.1,0.0735222]
[1770648241184,4.90657322,2038.1,2035.8,0.0735222]
[1770648241185,0.0735222,2037.4,2035.9,3.27556915]
[1770648241397,0.0735222,2037.1,2036.0,1.22789783]
[1770648241768,0.0735222,2036.8,2036.0,1.22789783]
[1770648241978,1.22711431,2037.3,2036.0,1.22789783]
[1770648242179,0.0735222,2037.1,2036.0,1.22789783]
[1770648242367,1.22711431,2037.3,2036.0,1.22789783]
[1770648242570,0.0735222,2037.6,2036.3,3.27556915]
[1770648242768,1.30043874,2037.7,2036.3,3.27556915]
[1770648243079,0.0735222,2037.4,2036.0,1.22789783]
[1770648243275,1.30080681,2037.1,2036.0,1.22789783]
[1770648243613,1.30051606,2037.6,2036.0,1.22789783]
[1770648243812,0.0735222,2037.1,2036.0,1.22789783]
[1770648244100,0.0735222,2036.8,2036.0,1.22789783]
[1770648244600,0.0735222,2037.3,2036.0,1.22789783]
[1770648244898,0.0735222,2036.7,2036.0,1.22789783]
[1770648245062,0.0735222,2037.0,2036.0,1.22789783]
[1770648245263,1.22723479,2037.1,2035.8,4.91259135]
[1770648245474,0.0735222,2036.9,2035.8,0.001]
[1770648245680,0.0735222,2036.6,2035.8,0.001]
[1770648245877,0.0735222,2036.9,2035.8,0.001]
[1770648246304,3.432,2037.5,2035.8,3.27656915]
[1770648246513,4.65902932,2037.5,2036.0,3.27556915]
[1770648246692,0.0735222,2037.4,2036.0,3.27556915]
[1770648246893,0.002,2037.5,2036.0,3.27556915]
[1770648247392,0.002,2037.5,2036.4,3.27556915]
[1770648247581,0.002,2037.5,2036.4,6.70556915]
[1770648247782,0.002,2037.5,2036.7,11.2955586]
[1770648247981,4.65654017,2038.3,2036.8,3.27556915]
[1770648248288,0.0735222,2038.2,2036.8,3.27556915]
[1770648248808,1.29992269,2038.5,2036.8,3.27556915]
[1770648248997,0.0735222,2038.1,2036.8,3.27556915]
[1770648249186,0.0735222,2038.4,2036.8,3.27556915]
[1770648249384,0.0735222,2038.3,2037.0,3.27556915]
[1770648249587,1.29983374,2038.7,2037.2,3.27556915]
[1770648249813,1.29983374,2038.7,2037.2,3.43]
[1770648249814,0.0735222,2038.4,2037.2,3.43]
[1770648250022,1.29983374,2038.7,2037.2,6.70556915]
[1770648250308,1.0481379,2038.6,2037.2,6.70556915]
[1770648250513,0.0735222,2038.4,2037.2,3.43]
[1770648251019,0.0735222,2038.6,2037.2,6.70556915]
[1770648251218,1.04853522,2038.5,2037.2,6.70556915]
[1770648251514,1.30165667,2039.0,2037.5,3.27556915]
[1770648251723,1.30163045,2039.0,2037.5,3.27556915]
[1770648252086,1.04872646,2038.9,2037.5,3.27556915]
[1770648252315,1.30163045,2039.0,2037.5,3.27556915]
[1770648252504,1.048609,2038.9,2037.5,3.27556915]
[1770648252695,1.30163045,2039.0,2037.5,3.27556915]
[1770648252892,0.0735222,2038.7,2037.5,3.27556915]
[1770648253114,1.30161804,2039.0,2037.6,3.27556915]
[1770648253289,1.22809959,2039.0,2037.6,3.27556915]
[1770648253618,0.0735222,2038.9,2037.7,4.50244258]
[1770648254016,0.002,2039.0,2037.7,4.50244258]
[1770648254195,0.0735222,2038.9,2037.7,4.50244258]
[1770648254396,0.0735222,2038.9,2037.7,1.22687343]
[1770648254597,0.002,2039.0,2037.7,1.22687343]
[1770648254598,0.0735222,2038.8,2037.7,1.22687343]
[1770648255515,0.0755222,2039.0,2037.7,1.22687343]
[1770648255722,0.002,2039.0,2037.7,3.27552924]
[1770648256301,1.22809893,2039.0,2037.7,3.27552924]
[1770648256607,0.002,2039.0,2037.7,3.27552924]
[1770648257706,0.002,2039.0,2037.8,1.22681322]
[1770648257912,0.002,2039.0,2037.9,3.429]
[1770648258097,0.002,2038.8,2037.9,3.429]
[1770648259230,0.002,2038.8,2037.8,1.22681322]
[1770648259416,0.0735222,2038.7,2037.8,4.65581322]
[1770648260523,0.002,2038.8,2037.8,4.65581322]
[1770648260722,0.002,2038.8,2037.8,7.94261877]
[1770648260926,0.002,2038.8,2037.8,4.65581322]
[1770648261794,0.0735222,2038.7,2037.8,4.65581322]
[1770648261995,0.0735222,2038.4,2037.8,1.22681322]
[1770648262195,0.0735222,2038.7,2037.5,3.428]
[1770648262424,0.0735222,2038.4,2037.6,1.22693364]
[1770648263830,0.0735222,2038.7,2037.6,1.22693364]
[1770648264040,1.22825504,2038.8,2037.6,1.22693364]
[1770648264041,0.002,2038.8,2037.7,3.28680555]
[1770648264201,1.22824158,2038.8,2037.7,3.28680555]
[1770648264401,1.29989519,2038.6,2037.6,1.22693364]
[1770648264597,0.002,2038.8,2037.6,1.22693364]
[1770648264930,1.22821526,2038.8,2037.6,4.51373919]
[1770648265098,0.002,2038.8,2037.6,4.51373919]
[1770648265427,0.002,2038.8,2037.8,3.28680555]
[1770648265742,0.0735222,2039.5,2037.8,3.28680555]
[1770648265743,1.22743222,2040.1,2038.6,3.28680555]
[1770648265904,0.002,2040.1,2038.9,10.41106115]
[1770648266225,0.002,2040.1,2038.7,3.428]
[1770648266226,0.0735222,2039.9,2038.7,3.428]
[1770648266393,1.22743371,2040.1,2038.7,3.428]
[1770648266596,0.002,2040.1,2038.8,1.22621149]
[1770648266799,0.002,2040.1,2039.2,10.41106115]
[1770648267000,0.002,2040.1,2039.3,3.428]
[1770648267535,0.0735222,2041.0,2039.6,13.6978667]
[1770648267729,0.0735222,2041.0,2039.6,3.28680555]
[1770648267945,4.89922429,2041.2,2039.6,3.28680555]
[1770648268145,0.0735222,2041.0,2039.6,3.28680555]
[1770648268653,1.22672288,2041.3,2040.0,3.28680555]
[1770648268942,0.0735222,2041.2,2040.1,3.427]
[1770648269128,0.0735222,2041.2,2039.7,1.22567044]
[1770648269129,0.0735222,2040.6,2039.7,1.22567044]
[1770648269443,0.0735222,2040.6,2039.6,1.22568675]